[Event "Titled Tuesday Blitz May 16 Early 2023"]
[White "HamedWafa4"]
[Black "Zherebukh, Yaroslav"]
[BlackFideId "14116804"]
[WhiteElo "2609"]
[BlackElo "2531"]
[Result "0-1"]
[Round "07"]
[TimeControl "180+2"]
[Date "2023.05.16"]
[WhiteClock "0:00:02"]
[BlackClock "0:00:25"]

1. e4 {[%clk 0:03:00]}  c6 {[%clk 0:02:54]} 2. d4 {[%clk 0:03:00]}  d5 {[%clk 0:02:54]} 3. e5 {[%clk 0:03:00]}  c5 {[%clk 0:02:55]} 4. Nf3 {[%clk 0:03:00]}  cxd4 {[%clk 0:02:53]} 5. Nxd4 {[%clk 0:02:59]}  e6 {[%clk 0:02:52]} 6. c4 {[%clk 0:02:58]}  Nc6 {[%clk 0:02:51]} 7. Nc3 {[%clk 0:02:55]}  Bc5 {[%clk 0:02:48]} 8. Nxc6 {[%clk 0:02:42]}  bxc6 {[%clk 0:02:48]} 9. cxd5 {[%clk 0:02:42]}  cxd5 {[%clk 0:02:45]} 10. Bb5+ {[%clk 0:02:41]}  Bd7 {[%clk 0:02:45]} 11. O-O {[%clk 0:02:38]}  Ne7 {[%clk 0:02:43]} 12. Qa4 {[%clk 0:02:30]}  Ng6 {[%clk 0:02:40]} 13. Bg5 {[%clk 0:02:06]}  Qxg5 {[%clk 0:02:34]} 14. Bxd7+ {[%clk 0:02:05]}  Ke7 {[%clk 0:02:26]} 15. Rac1 {[%clk 0:01:48]}  Qxe5 {[%clk 0:01:23]} 16. Nxd5+ {[%clk 0:01:24]}  Qxd5 {[%clk 0:01:20]} 17. Bc6 {[%clk 0:01:23]}  Qd4 {[%clk 0:01:13]} 18. Qb5 {[%clk 0:01:14]}  Bb6 {[%clk 0:01:07]} 19. Bxa8 {[%clk 0:01:14]}  Rxa8 {[%clk 0:01:08]} 20. Rc4 {[%clk 0:01:11]}  Qd5 {[%clk 0:00:59]} 21. Qb4+ {[%clk 0:00:52]}  Qd6 {[%clk 0:00:59]} 22. Qxd6+ {[%clk 0:00:37]}  Kxd6 {[%clk 0:00:58]} 23. Rd1+ {[%clk 0:00:37]}  Ke7 {[%clk 0:00:58]} 24. b4 {[%clk 0:00:34]}  Ne5 {[%clk 0:00:55]} 25. Re4 {[%clk 0:00:22]}  Nd7 {[%clk 0:00:51]} 26. a4 {[%clk 0:00:20]}  a5 {[%clk 0:00:51]} 27. bxa5 {[%clk 0:00:19]}  Rxa5 {[%clk 0:00:50]} 28. Rb1 {[%clk 0:00:17]}  Ra6 {[%clk 0:00:45]} 29. g3 {[%clk 0:00:17]}  Nf6 {[%clk 0:00:39]} 30. Reb4 {[%clk 0:00:17]}  Nd5 {[%clk 0:00:40]} 31. Rb5 {[%clk 0:00:17]}  Kd6 {[%clk 0:00:37]} 32. a5 {[%clk 0:00:13]}  Bc7 {[%clk 0:00:34]} 33. Rc1 {[%clk 0:00:12]}  g5 {[%clk 0:00:33]} 34. Ra1 {[%clk 0:00:10]}  g4 {[%clk 0:00:33]} 35. Kg2 {[%clk 0:00:11]}  h5 {[%clk 0:00:33]} 36. Ra4 {[%clk 0:00:10]}  f5 {[%clk 0:00:33]} 37. Ra3 {[%clk 0:00:09]}  Kc6 {[%clk 0:00:33]} 38. Rb1 {[%clk 0:00:09]}  Bd6 {[%clk 0:00:32]} 39. Rc1+ {[%clk 0:00:09]}  Bc5 {[%clk 0:00:28]} 40. Ra4 {[%clk 0:00:09]}  Kd6 {[%clk 0:00:28]} 41. Rb1 {[%clk 0:00:02]}  Nc3 {[%clk 0:00:25]} 0-1


[Site "https://www.chess.com"]

[Event "Titled Tuesday Blitz May 16 Early 2023"]
[White "Kvaloy, Aksel Bu"]
[Black "Sarana, Alexey"]
[WhiteFideId "1528815"]
[BlackFideId "24133795"]
[WhiteElo "2242"]
[BlackElo "2714"]
[Result "0-1"]
[Round "07"]
[TimeControl "180+2"]
[Date "2023.05.16"]
[WhiteClock "0:01:09"]
[BlackClock "0:00:47"]

1. e4 {[%clk 0:03:00]}  e5 {[%clk 0:02:53]} 2. Nf3 {[%clk 0:03:01]}  Nc6 {[%clk 0:02:53]} 3. Nc3 {[%clk 0:03:01]}  d6 {[%clk 0:02:53]} 4. d4 {[%clk 0:03:01]}  Bg4 {[%clk 0:02:53]} 5. dxe5 {[%clk 0:02:57]}  dxe5 {[%clk 0:02:50]} 6. Qxd8+ {[%clk 0:02:55]}  Rxd8 {[%clk 0:02:51]} 7. Bb5 {[%clk 0:02:55]}  f6 {[%clk 0:02:42]} 8. Nd5 {[%clk 0:02:50]}  Bd6 {[%clk 0:02:37]} 9. Be3 {[%clk 0:02:48]}  a6 {[%clk 0:02:26]} 10. Ba4 {[%clk 0:02:36]}  Ne7 {[%clk 0:02:20]} 11. O-O-O {[%clk 0:02:35]}  b5 {[%clk 0:02:18]} 12. Bb3 {[%clk 0:02:35]}  Na5 {[%clk 0:02:18]} 13. Nxe7 {[%clk 0:02:25]}  Kxe7 {[%clk 0:02:12]} 14. Bd5 {[%clk 0:02:21]}  c6 {[%clk 0:01:20]} 15. Bb6 {[%clk 0:02:16]}  cxd5 {[%clk 0:01:20]} 16. Bxa5 {[%clk 0:02:16]}  dxe4 {[%clk 0:01:20]} 17. Bxd8+ {[%clk 0:02:16]}  Rxd8 {[%clk 0:01:21]} 18. h3 {[%clk 0:02:16]}  Bxf3 {[%clk 0:01:02]} 19. gxf3 {[%clk 0:02:16]}  exf3 {[%clk 0:01:03]} 20. Rhg1 {[%clk 0:02:09]}  g5 {[%clk 0:01:03]} 21. h4 {[%clk 0:02:07]}  h6 {[%clk 0:00:57]} 22. hxg5 {[%clk 0:02:07]}  hxg5 {[%clk 0:00:57]} 23. Rg3 {[%clk 0:01:57]}  e4 {[%clk 0:00:57]} 24. Rgg1 {[%clk 0:01:44]}  Bf4+ {[%clk 0:00:57]} 25. Kb1 {[%clk 0:01:44]}  Rxd1+ {[%clk 0:00:54]} 26. Rxd1 {[%clk 0:01:45]}  g4 {[%clk 0:00:54]} 27. Re1 {[%clk 0:01:44]}  f5 {[%clk 0:00:53]} 28. c3 {[%clk 0:01:44]}  e3 {[%clk 0:00:48]} 29. Kc2 {[%clk 0:01:35]}  g3 {[%clk 0:00:47]} 30. fxg3 {[%clk 0:01:09]}  f2 {[%clk 0:00:47]} 0-1


[Site "https://www.chess.com"]

[Event "Titled Tuesday Blitz May 16 Early 2023"]
[White "Domingo Nunez, Ruben"]
[Black "Demchenko, Anton"]
[WhiteFideId "22245570"]
[BlackFideId "4160258"]
[WhiteElo "2404"]
[BlackElo "2545"]
[Result "0-1"]
[Round "07"]
[TimeControl "180+2"]
[Date "2023.05.16"]
[WhiteClock "0:00:01"]
[BlackClock "0:00:44"]

1. c4 {[%clk 0:02:50]}  e5 {[%clk 0:02:59]} 2. Nc3 {[%clk 0:02:50]}  Nc6 {[%clk 0:02:59]} 3. g3 {[%clk 0:02:50]}  Bc5 {[%clk 0:02:58]} 4. Bg2 {[%clk 0:02:50]}  d6 {[%clk 0:02:59]} 5. e3 {[%clk 0:02:51]}  a6 {[%clk 0:03:00]} 6. a3 {[%clk 0:02:52]}  Ba7 {[%clk 0:03:01]} 7. b4 {[%clk 0:02:52]}  h5 {[%clk 0:02:57]} 8. h4 {[%clk 0:02:52]}  Bg4 {[%clk 0:02:55]} 9. Qc2 {[%clk 0:02:52]}  Qd7 {[%clk 0:02:50]} 10. Bb2 {[%clk 0:02:52]}  Nf6 {[%clk 0:02:46]} 11. d3 {[%clk 0:02:53]}  O-O {[%clk 0:02:43]} 12. Nge2 {[%clk 0:02:26]}  Rab8 {[%clk 0:02:41]} 13. f3 {[%clk 0:02:07]}  Be6 {[%clk 0:02:40]} 14. e4 {[%clk 0:02:07]}  b5 {[%clk 0:02:33]} 15. Nd5 {[%clk 0:02:02]}  bxc4 {[%clk 0:02:13]} 16. dxc4 {[%clk 0:01:35]}  a5 {[%clk 0:02:13]} 17. b5 {[%clk 0:01:12]}  Ne7 {[%clk 0:02:11]} 18. a4 {[%clk 0:00:53]}  c6 {[%clk 0:01:56]} 19. bxc6 {[%clk 0:00:19]}  Nxc6 {[%clk 0:01:55]} 20. Qd2 {[%clk 0:00:20]}  Bxd5 {[%clk 0:01:49]} 21. cxd5 {[%clk 0:00:19]}  Nb4 {[%clk 0:01:47]} 22. Bc3 {[%clk 0:00:13]}  Rfc8 {[%clk 0:01:43]} 23. Bh3 {[%clk 0:00:13]}  Qb7 {[%clk 0:01:34]} 24. Bxc8 {[%clk 0:00:14]}  Qxc8 {[%clk 0:01:32]} 25. Kf1 {[%clk 0:00:14]}  Qc5 {[%clk 0:01:24]} 26. Nc1 {[%clk 0:00:08]}  Rc8 {[%clk 0:00:56]} 27. Bb2 {[%clk 0:00:08]}  Qc4+ {[%clk 0:00:49]} 28. Kg2 {[%clk 0:00:08]}  Nxe4 {[%clk 0:00:49]} 29. fxe4 {[%clk 0:00:01]}  Qxe4+ {[%clk 0:00:50]} 30. Kh3 {[%clk 0:00:02]}  Rc2 {[%clk 0:00:44]} 31. Qd1 {[%clk 0:00:01]}  Qg2# {[%clk 0:00:44]} 0-1


[Site "https://www.chess.com"]

[Event "Titled Tuesday Blitz May 16 Early 2023"]
[White "Florescu, Codrut-Constantin"]
[Black "Ter-Sahakyan, Samvel"]
[WhiteFideId "1202200"]
[BlackFideId "13302531"]
[WhiteElo "2191"]
[BlackElo "2545"]
[Result "1-0"]
[Round "07"]
[TimeControl "180+2"]
[Date "2023.05.16"]
[WhiteClock "0:00:34"]
[BlackClock "0:00:38"]

1. e4 {[%clk 0:03:00]}  c5 {[%clk 0:02:59]} 2. Nf3 {[%clk 0:03:00]}  e6 {[%clk 0:03:00]} 3. c3 {[%clk 0:02:56]}  d5 {[%clk 0:02:59]} 4. exd5 {[%clk 0:02:56]}  exd5 {[%clk 0:02:59]} 5. d4 {[%clk 0:02:56]}  Nf6 {[%clk 0:02:59]} 6. Bb5+ {[%clk 0:02:48]}  Bd7 {[%clk 0:03:00]} 7. Qe2+ {[%clk 0:02:48]}  Be7 {[%clk 0:02:59]} 8. dxc5 {[%clk 0:02:46]}  O-O {[%clk 0:02:59]} 9. Bxd7 {[%clk 0:02:43]}  Nbxd7 {[%clk 0:02:56]} 10. O-O {[%clk 0:02:41]}  Nxc5 {[%clk 0:02:53]} 11. Bg5 {[%clk 0:02:39]}  Re8 {[%clk 0:02:50]} 12. Nbd2 {[%clk 0:02:31]}  Qb6 {[%clk 0:02:45]} 13. Rab1 {[%clk 0:02:13]}  Bf8 {[%clk 0:02:32]} 14. Qd1 {[%clk 0:02:12]}  Nfe4 {[%clk 0:02:32]} 15. Be3 {[%clk 0:02:10]}  Qg6 {[%clk 0:02:28]} 16. Nb3 {[%clk 0:02:05]}  Rad8 {[%clk 0:02:10]} 17. Nxc5 {[%clk 0:02:04]}  Nxc5 {[%clk 0:02:10]} 18. Bxc5 {[%clk 0:02:01]}  Bxc5 {[%clk 0:02:09]} 19. Qb3 {[%clk 0:02:01]}  Bb6 {[%clk 0:01:55]} 20. Rbe1 {[%clk 0:01:59]}  Qf5 {[%clk 0:01:49]} 21. Qb5 {[%clk 0:01:49]}  Re4 {[%clk 0:01:44]} 22. Rxe4 {[%clk 0:01:46]}  Qxe4 {[%clk 0:01:37]} 23. Re1 {[%clk 0:01:45]}  h6 {[%clk 0:01:21]} 24. Rxe4 {[%clk 0:01:41]}  dxe4 {[%clk 0:01:22]} 25. Ne1 {[%clk 0:01:40]}  g6 {[%clk 0:01:15]} 26. Qe2 {[%clk 0:01:37]}  Re8 {[%clk 0:01:12]} 27. Nc2 {[%clk 0:01:35]}  Re5 {[%clk 0:01:12]} 28. Nd4 {[%clk 0:01:35]}  Kg7 {[%clk 0:01:11]} 29. g3 {[%clk 0:01:33]}  h5 {[%clk 0:01:11]} 30. Kg2 {[%clk 0:01:34]}  Re7 {[%clk 0:01:10]} 31. Qe3 {[%clk 0:01:30]}  Re5 {[%clk 0:01:07]} 32. b4 {[%clk 0:01:27]}  Re7 {[%clk 0:01:05]} 33. a4 {[%clk 0:01:26]}  Bc7 {[%clk 0:01:00]} 34. Nb5 {[%clk 0:01:20]}  Bb8 {[%clk 0:00:59]} 35. Qc5 {[%clk 0:01:15]}  Re8 {[%clk 0:00:56]} 36. Nd6 {[%clk 0:01:04]}  Re6 {[%clk 0:00:51]} 37. Qd4+ {[%clk 0:01:02]}  Kg8 {[%clk 0:00:48]} 38. Nxe4 {[%clk 0:01:02]}  Be5 {[%clk 0:00:49]} 39. Qd8+ {[%clk 0:00:59]}  Kg7 {[%clk 0:00:49]} 40. Qd7 {[%clk 0:00:48]}  h4 {[%clk 0:00:44]} 41. gxh4 {[%clk 0:00:40]}  Bf4 {[%clk 0:00:43]} 42. Ng5 {[%clk 0:00:37]}  Bxg5 {[%clk 0:00:41]} 43. hxg5 {[%clk 0:00:37]}  b6 {[%clk 0:00:41]} 44. Qxa7 {[%clk 0:00:36]}  Re5 {[%clk 0:00:38]} 45. h4 {[%clk 0:00:34]} 1-0


[Site "https://www.chess.com"]

[Event "Titled Tuesday Blitz May 16 Early 2023"]
[White "Tari, Aryan"]
[Black "Lewicki, Miroslaw"]
[WhiteFideId "1510045"]
[BlackFideId "1113380"]
[WhiteElo "2571"]
[BlackElo "2212"]
[Result "1-0"]
[Round "07"]
[TimeControl "180+2"]
[Date "2023.05.16"]
[WhiteClock "0:00:07"]
[BlackClock "0:00:00"]

1. d4 {[%clk 0:02:54]}  Nf6 {[%clk 0:02:58]} 2. Nf3 {[%clk 0:02:54]}  e6 {[%clk 0:02:58]} 3. g3 {[%clk 0:02:53]}  c5 {[%clk 0:02:57]} 4. c4 {[%clk 0:02:53]}  cxd4 {[%clk 0:02:49]} 5. Nxd4 {[%clk 0:02:54]}  Nc6 {[%clk 0:02:50]} 6. Bg2 {[%clk 0:02:53]}  Bc5 {[%clk 0:02:49]} 7. Nb3 {[%clk 0:02:53]}  Bb4+ {[%clk 0:02:47]} 8. Bd2 {[%clk 0:02:50]}  O-O {[%clk 0:02:44]} 9. O-O {[%clk 0:02:36]}  d5 {[%clk 0:02:38]} 10. cxd5 {[%clk 0:02:31]}  Nxd5 {[%clk 0:02:34]} 11. Bxb4 {[%clk 0:02:24]}  Ndxb4 {[%clk 0:02:29]} 12. Nc3 {[%clk 0:02:24]}  Qe7 {[%clk 0:02:22]} 13. Qc1 {[%clk 0:01:57]}  Bd7 {[%clk 0:02:13]} 14. a3 {[%clk 0:01:52]}  Na6 {[%clk 0:02:07]} 15. Qe3 {[%clk 0:01:52]}  Rac8 {[%clk 0:01:48]} 16. Rac1 {[%clk 0:01:48]}  b6 {[%clk 0:01:31]} 17. Nb5 {[%clk 0:01:44]}  Nab8 {[%clk 0:01:27]} 18. Rfd1 {[%clk 0:01:32]}  Na5 {[%clk 0:01:16]} 19. Rxc8 {[%clk 0:01:25]}  Rxc8 {[%clk 0:01:05]} 20. Nxa7 {[%clk 0:01:23]}  Rf8 {[%clk 0:00:49]} 21. Qxb6 {[%clk 0:01:12]}  Ba4 {[%clk 0:00:38]} 22. Qxa5 {[%clk 0:01:06]}  Bxb3 {[%clk 0:00:38]} 23. Rd2 {[%clk 0:01:03]}  h6 {[%clk 0:00:33]} 24. h4 {[%clk 0:01:00]}  e5 {[%clk 0:00:30]} 25. Nb5 {[%clk 0:00:57]}  Qc5 {[%clk 0:00:17]} 26. Qb4 {[%clk 0:00:50]}  Qc1+ {[%clk 0:00:17]} 27. Kh2 {[%clk 0:00:50]}  Bc4 {[%clk 0:00:16]} 28. Nd6 {[%clk 0:00:45]}  Be6 {[%clk 0:00:13]} 29. Qc3 {[%clk 0:00:35]}  Qe1 {[%clk 0:00:13]} 30. Ne4 {[%clk 0:00:27]}  Nd7 {[%clk 0:00:11]} 31. Rc2 {[%clk 0:00:26]}  Qb1 {[%clk 0:00:10]} 32. Rc1 {[%clk 0:00:21]}  Qa2 {[%clk 0:00:09]} 33. b4 {[%clk 0:00:21]}  Qxe2 {[%clk 0:00:09]} 34. Rc2 {[%clk 0:00:19]}  Qd1 {[%clk 0:00:07]} 35. Nc5 {[%clk 0:00:19]}  Nf6 {[%clk 0:00:06]} 36. Bf3 {[%clk 0:00:18]}  Qf1 {[%clk 0:00:05]} 37. Qxe5 {[%clk 0:00:10]}  Bd5 {[%clk 0:00:03]} 38. Qe2 {[%clk 0:00:07]}  Bxf3 {[%clk 0:00:00]} 39. Qxf1 {[%clk 0:00:07]} 1-0


[Site "https://www.chess.com"]

[Event "Titled Tuesday Blitz May 16 Early 2023"]
[White "Vlassov, Nikolai"]
[Black "Petrosyan, Manuel"]
[WhiteFideId "4103360"]
[BlackFideId "13300857"]
[WhiteElo "2324"]
[BlackElo "2576"]
[Result "1/2-1/2"]
[Round "07"]
[TimeControl "180+2"]
[Date "2023.05.16"]
[WhiteClock "0:00:06"]
[BlackClock "0:00:04"]

1. e4 {[%clk 0:03:00]}  c5 {[%clk 0:02:59]} 2. c3 {[%clk 0:03:00]}  Nf6 {[%clk 0:02:56]} 3. e5 {[%clk 0:03:01]}  Nd5 {[%clk 0:02:57]} 4. d4 {[%clk 0:03:02]}  cxd4 {[%clk 0:02:57]} 5. cxd4 {[%clk 0:03:03]}  d6 {[%clk 0:02:56]} 6. Bc4 {[%clk 0:03:03]}  Nb6 {[%clk 0:02:55]} 7. Bb3 {[%clk 0:03:03]}  dxe5 {[%clk 0:02:54]} 8. Qh5 {[%clk 0:03:02]}  e6 {[%clk 0:02:39]} 9. dxe5 {[%clk 0:03:02]}  Nc6 {[%clk 0:02:18]} 10. Nc3 {[%clk 0:03:02]}  g6 {[%clk 0:02:10]} 11. Qg5 {[%clk 0:02:58]}  Qxg5 {[%clk 0:02:01]} 12. Bxg5 {[%clk 0:02:57]}  Be7 {[%clk 0:01:47]} 13. Bxe7 {[%clk 0:02:53]}  Kxe7 {[%clk 0:01:47]} 14. Nf3 {[%clk 0:02:49]}  Nd7 {[%clk 0:01:40]} 15. O-O-O {[%clk 0:02:48]}  b6 {[%clk 0:01:22]} 16. Rhe1 {[%clk 0:02:40]}  Bb7 {[%clk 0:01:19]} 17. Nb5 {[%clk 0:02:36]}  Nc5 {[%clk 0:01:10]} 18. Nd6 {[%clk 0:02:27]}  Ba6 {[%clk 0:01:08]} 19. Re3 {[%clk 0:02:21]}  h6 {[%clk 0:01:01]} 20. h4 {[%clk 0:02:02]}  Rhd8 {[%clk 0:00:54]} 21. Bc2 {[%clk 0:01:33]}  Rd7 {[%clk 0:00:43]} 22. a3 {[%clk 0:01:25]}  Nb7 {[%clk 0:00:31]} 23. Ba4 {[%clk 0:00:59]}  Nxd6 {[%clk 0:00:14]} 24. Bxc6 {[%clk 0:00:58]}  Rc8 {[%clk 0:00:13]} 25. exd6+ {[%clk 0:00:56]}  Rxd6 {[%clk 0:00:13]} 26. Rxd6 {[%clk 0:00:56]}  Kxd6 {[%clk 0:00:14]} 27. Ne5 {[%clk 0:00:52]}  f6 {[%clk 0:00:12]} 28. Nxg6 {[%clk 0:00:46]}  Rxc6+ {[%clk 0:00:12]} 29. Kd2 {[%clk 0:00:47]}  e5 {[%clk 0:00:09]} 30. f4 {[%clk 0:00:44]}  exf4 {[%clk 0:00:03]} 31. Nxf4 {[%clk 0:00:44]}  Rc4 {[%clk 0:00:03]} 32. Re6+ {[%clk 0:00:39]}  Kd7 {[%clk 0:00:04]} 33. Rxf6 {[%clk 0:00:39]}  Bb7 {[%clk 0:00:02]} 34. g3 {[%clk 0:00:33]}  Be4 {[%clk 0:00:02]} 35. Rxh6 {[%clk 0:00:32]}  Rc2+ {[%clk 0:00:02]} 36. Ke3 {[%clk 0:00:33]}  Bf5 {[%clk 0:00:03]} 37. b4 {[%clk 0:00:30]}  Rc3+ {[%clk 0:00:03]} 38. Kd4 {[%clk 0:00:31]}  Rxg3 {[%clk 0:00:03]} 39. Ke5 {[%clk 0:00:31]}  Bb1 {[%clk 0:00:03]} 40. a4 {[%clk 0:00:27]}  Rb3 {[%clk 0:00:02]} 41. Nd5 {[%clk 0:00:26]}  Ra3 {[%clk 0:00:02]} 42. Rd6+ {[%clk 0:00:25]}  Kc8 {[%clk 0:00:02]} 43. Rc6+ {[%clk 0:00:18]}  Kb7 {[%clk 0:00:02]} 44. Rc7+ {[%clk 0:00:18]}  Kb8 {[%clk 0:00:02]} 45. Rc1 {[%clk 0:00:17]}  Bh7 {[%clk 0:00:01]} 46. h5 {[%clk 0:00:15]}  Rxa4 {[%clk 0:00:01]} 47. h6 {[%clk 0:00:15]}  Ra2 {[%clk 0:00:01]} 48. Nf6 {[%clk 0:00:15]}  Bd3 {[%clk 0:00:02]} 49. Rd1 {[%clk 0:00:14]}  Bg6 {[%clk 0:00:01]} 50. Rg1 {[%clk 0:00:12]}  Re2+ {[%clk 0:00:01]} 51. Kd6 {[%clk 0:00:11]}  Bc2 {[%clk 0:00:02]} 52. Rg8+ {[%clk 0:00:10]}  Kb7 {[%clk 0:00:03]} 53. h7 {[%clk 0:00:10]}  Bxh7 {[%clk 0:00:02]} 54. Nxh7 {[%clk 0:00:11]}  Ka6 {[%clk 0:00:03]} 55. Rg5 {[%clk 0:00:10]}  Rb2 {[%clk 0:00:03]} 56. Rg4 {[%clk 0:00:09]}  Kb5 {[%clk 0:00:02]} 57. Nf6 {[%clk 0:00:08]}  Rxb4 {[%clk 0:00:02]} 58. Rg5+ {[%clk 0:00:08]}  Ka4 {[%clk 0:00:03]} 59. Nd5 {[%clk 0:00:09]}  Rd4 {[%clk 0:00:03]} 60. Ke5 {[%clk 0:00:09]}  Rd3 {[%clk 0:00:02]} 61. Rg7 {[%clk 0:00:08]}  Kb3 {[%clk 0:00:01]} 62. Rxa7 {[%clk 0:00:08]}  b5 {[%clk 0:00:01]} 63. Ke4 {[%clk 0:00:08]}  Rd2 {[%clk 0:00:01]} 64. Rb7 {[%clk 0:00:08]}  Re2+ {[%clk 0:00:02]} 65. Kd3 {[%clk 0:00:08]}  Rh2 {[%clk 0:00:01]} 66. Rxb5+ {[%clk 0:00:07]}  Ka3 {[%clk 0:00:02]} 67. Nc3 {[%clk 0:00:07]}  Rd2+ {[%clk 0:00:02]} 68. Kc4 {[%clk 0:00:06]}  Rd4+ {[%clk 0:00:03]} 69. Kc5 {[%clk 0:00:06]}  Rc4+ {[%clk 0:00:04]} 70. Kxc4 {[%clk 0:00:06]} 1/2-1/2


[Site "https://www.chess.com"]

[Event "Titled Tuesday Blitz May 16 Early 2023"]
[White "Mekhitarian, Krikor Sevag"]
[Black "Kamalidenova, Meruert"]
[WhiteFideId "2107660"]
[BlackFideId "13712802"]
[WhiteElo "2604"]
[BlackElo "2361"]
[Result "1-0"]
[Round "07"]
[TimeControl "180+2"]
[Date "2023.05.16"]
[WhiteClock "0:00:04"]
[BlackClock "0:00:10"]

1. Nf3 {[%clk 0:03:00]}  Nf6 {[%clk 0:02:59]} 2. c4 {[%clk 0:03:00]}  g6 {[%clk 0:02:56]} 3. Nc3 {[%clk 0:03:00]}  Bg7 {[%clk 0:02:57]} 4. e4 {[%clk 0:03:01]}  d6 {[%clk 0:02:57]} 5. d4 {[%clk 0:03:01]}  O-O {[%clk 0:02:57]} 6. h3 {[%clk 0:03:02]}  e5 {[%clk 0:02:40]} 7. d5 {[%clk 0:03:01]}  Nh5 {[%clk 0:02:34]} 8. g3 {[%clk 0:03:00]}  Qe8 {[%clk 0:02:28]} 9. Be2 {[%clk 0:02:57]}  f5 {[%clk 0:02:16]} 10. exf5 {[%clk 0:02:58]}  gxf5 {[%clk 0:02:16]} 11. Nh4 {[%clk 0:02:56]}  Nf6 {[%clk 0:02:14]} 12. Qc2 {[%clk 0:02:53]}  Na6 {[%clk 0:02:08]} 13. Nxf5 {[%clk 0:02:13]}  Bxf5 {[%clk 0:02:09]} 14. Qxf5 {[%clk 0:02:11]}  Nxd5 {[%clk 0:02:08]} 15. Qc2 {[%clk 0:01:36]}  Nxc3 {[%clk 0:01:58]} 16. bxc3 {[%clk 0:01:21]}  Nc5 {[%clk 0:01:55]} 17. Be3 {[%clk 0:01:20]}  Qe6 {[%clk 0:01:38]} 18. Bxc5 {[%clk 0:01:15]}  dxc5 {[%clk 0:01:38]} 19. Qe4 {[%clk 0:01:15]}  Rad8 {[%clk 0:01:28]} 20. O-O {[%clk 0:00:53]}  Qxh3 {[%clk 0:01:24]} 21. Bg4 {[%clk 0:00:53]}  Qh6 {[%clk 0:01:22]} 22. Qxb7 {[%clk 0:00:53]}  e4 {[%clk 0:01:00]} 23. Qxe4 {[%clk 0:00:52]}  Bxc3 {[%clk 0:00:59]} 24. Rab1 {[%clk 0:00:39]}  Bd4 {[%clk 0:00:59]} 25. Kg2 {[%clk 0:00:37]}  Rde8 {[%clk 0:00:55]} 26. Qd5+ {[%clk 0:00:32]}  Kh8 {[%clk 0:00:55]} 27. Rbd1 {[%clk 0:00:19]}  Qg7 {[%clk 0:00:51]} 28. Bf3 {[%clk 0:00:17]}  Re5 {[%clk 0:00:49]} 29. Qc6 {[%clk 0:00:17]}  Ref5 {[%clk 0:00:48]} 30. Rd3 {[%clk 0:00:15]}  Qf7 {[%clk 0:00:44]} 31. Qe4 {[%clk 0:00:14]}  Re5 {[%clk 0:00:27]} 32. Qg4 {[%clk 0:00:11]}  Rg8 {[%clk 0:00:25]} 33. Qh4 {[%clk 0:00:08]}  Reg5 {[%clk 0:00:24]} 34. Rh1 {[%clk 0:00:06]}  R5g7 {[%clk 0:00:20]} 35. Qe4 {[%clk 0:00:05]}  Qf6 {[%clk 0:00:16]} 36. Rd2 {[%clk 0:00:04]}  Be5 {[%clk 0:00:17]} 37. Kf1 {[%clk 0:00:03]}  Rf8 {[%clk 0:00:15]} 38. Ke2 {[%clk 0:00:02]}  Bxg3 {[%clk 0:00:13]} 39. fxg3 {[%clk 0:00:03]}  Re7 {[%clk 0:00:13]} 40. Qxe7 {[%clk 0:00:02]}  Qxe7+ {[%clk 0:00:14]} 41. Kf2 {[%clk 0:00:03]}  Qf6 {[%clk 0:00:14]} 42. Rd3 {[%clk 0:00:03]}  Qb2+ {[%clk 0:00:15]} 43. Ke3 {[%clk 0:00:03]}  Re8+ {[%clk 0:00:15]} 44. Be4 {[%clk 0:00:02]}  Qe5 {[%clk 0:00:15]} 45. Rh4 {[%clk 0:00:02]}  Qg5+ {[%clk 0:00:15]} 46. Kf3 {[%clk 0:00:02]}  Rf8+ {[%clk 0:00:16]} 47. Rf4 {[%clk 0:00:02]}  Rxf4+ {[%clk 0:00:15]} 48. gxf4 {[%clk 0:00:03]}  Qf6 {[%clk 0:00:16]} 49. Rd7 {[%clk 0:00:02]}  Qc3+ {[%clk 0:00:15]} 50. Kg4 {[%clk 0:00:03]}  Qxc4 {[%clk 0:00:14]} 51. Rxh7+ {[%clk 0:00:02]}  Kg8 {[%clk 0:00:14]} 52. Bf5 {[%clk 0:00:03]}  Qe2+ {[%clk 0:00:14]} 53. Kg5 {[%clk 0:00:03]}  Qg2+ {[%clk 0:00:14]} 54. Kf6 {[%clk 0:00:03]}  Qb2+ {[%clk 0:00:13]} 55. Kg6 {[%clk 0:00:02]}  Qxa2 {[%clk 0:00:12]} 56. Re7 {[%clk 0:00:01]}  Kf8 {[%clk 0:00:12]} 57. Rxc7 {[%clk 0:00:01]}  Qg2+ {[%clk 0:00:12]} 58. Kf6 {[%clk 0:00:01]}  Qb2+ {[%clk 0:00:12]} 59. Kg6 {[%clk 0:00:02]}  Qd4 {[%clk 0:00:12]} 60. Rc6 {[%clk 0:00:01]}  Ke7 {[%clk 0:00:12]} 61. Re6+ {[%clk 0:00:01]}  Kd8 {[%clk 0:00:13]} 62. Re4 {[%clk 0:00:02]}  Qd6+ {[%clk 0:00:12]} 63. Be6 {[%clk 0:00:03]}  c4 {[%clk 0:00:12]} 64. f5 {[%clk 0:00:03]}  c3 {[%clk 0:00:12]} 65. Rc4 {[%clk 0:00:03]}  Qg3+ {[%clk 0:00:12]} 66. Kf7 {[%clk 0:00:04]}  Qd3 {[%clk 0:00:10]} 67. Rc8# {[%clk 0:00:04]} 1-0


[Site "https://www.chess.com"]